Workbook

Sheet Rent Roll
B1: 23 Ryan
B2: Tenant Name | C2: Other Tenants | D2: Address | E2: Location | F2: Size | G2: Unit | H2: Accounts Payable | I2: SD | J2: Utilities Covered | K2: Lease Expiration | L2: Rent | M2: 2025-08-01 | N2: Market Rent | O2: Note
B3: Sub 90 Golf | F3: office 1,2,3 - 1200 SQ FT | G3: FL 2 | I3: 7000 | K3: 2029-03-31 | L3: 3622.5 | N3: 4000
B4: J.F Hughes | F4: Garage - 1620 SQ FT | G4: Fl 1 | I4: 6600 | K4: 2026-11-30 | L4: 3300 | N4: 3800
B5: Vacant | G5: FL 2 | L5: 0 | N5: 3800
B6: Owner Occupied | F6: Garage | G6: FL 1 | L6: 0 | N6: 1600
B8: CAM Charges | C8: All tenants (adjusted) | F8: CAM | G8: CAM | J8: Common Area Maintenance | L8: 2251 | N8: 3696
F9: TOTAL / MO | H9: =SUM(H3:H8) -> 0 | I9: 13600 | L9: =SUM(L3:L8) -> 9173.5 | M9: 0 | N9: 16896
F10: TOTAL / ANNUAL | L10: =L9*12 -> 110082 | M10: 0 | N10: 202752
J13: Expenses | L13: Current | N13: Market
J14: Property Management | L14: 1440 | N14: 2000
J15: Property Tax | L15: 17663 | N15: 18000
J16: Insurance | L16: 3100 | N16: 3200
J17: Legal, Professional & Accounting | L17: 1000 | N17: 1500
J18: Brokerage Leasing Fee | L18: 0 | N18: 0
J19: Supplies & Materials
J20: Repairs & Maintenance (2.5%) | L20: =0.025*L10 -> 2752.05 | N20: =0.025*N10 -> 5068.8
J21: Utilities - (Fire Alarm) | L21: 830 | N21: 1200
J22: Bank & Misc Financing Fees | L22: 200 | N22: 500
J23: Snow & Landscaping & Trash | L23: 1445 | N23: 1800
J25: Total Expenses | L25: =SUM(L14:L24) -> 28430.05 | N25: =SUM(N14:N24) -> 33268.8
J27: NOI | L27: =L10-L25 -> 81651.95 | N27: =N10-N25 -> 169483.2
J28: (-) Vacancy 5% | L28: =0.05*L10 -> 5504.1 | N28: =0.05*N10 -> 10137.6
J29: Adjusted NOI | L29: =L27-L28 -> 76147.85 | N29: =N27-N28 -> 159345.6
J31: Debt Service Current | L31: =D18*0.08 -> 0 | N31: =L31 -> 0
J32: Net Cash Flow | L32: =L29-L31 -> 76147.85 | N32: =N29-N31 -> 159345.6
J35: Mortgage Estimate P&I | L35: =PRODUCT(7700,12) -> 92400 | N35: =L35 -> 92400
J36: Net Cash Flow | L36: =L27-L35 -> -10748.05 | N36: =N27-N35 -> 77083.2
J38: Value | L38: 1500000 | N38: 1550000
J40: Purchase Total | L40: 1500000 | N40: =N38+N39 -> 1550000
J42: Loan | L42: =L38*0.75 -> 1125000 | N42: 1150000
J46: Cap Rate | L46: =L29/L40 -> 0.05076523333 | N46: =N29/N40 -> 0.1028036129
B63: Value | C63: 705000
B64: 70% LTV | C64: =C63*0.75 -> 528750
B65: Repayment of Debt | C65: 440000
B66: Prepayment | C66: 4400
B67: intercompany Loans | C67: 0
B68: TOTAL | C68: =C64-C65-C66-C67 -> 84350
B69: Closing Costs | C69: =3%*C64 -> 15862.5
B70: Legal | C70: 1000
B71: Net Proceeds | C71: =C68-C69-C70 -> 67487.5
B73: BB | C73: =C71*D73 -> 16871.875 | D73: 0.25
B74: Investor | C74: =D74*C71 -> 50615.625 | D74: 0.75

Sheet Overview (hidden)
B3: OFFER | D3: VALUATION CURRENT | F3: VALUATION OPTIMSTIC
A4: $ | B4: 700000 | D4: 750000 | E4: =(D4-B4)/B4 -> 0.07142857143 | F4: 800000
A5: DEBT | B5: 440000 | D5: 440000 | F5: 440000
A6: MEZ | B6: 0 | D6: 0
A8: EQUITY | B8: =B4-B5-B6 -> 260000 | D8: =D4-D5-D6 -> 310000
A9: 0.75 | B9: =A9*B8 -> 195000 | C9: 0.75 | D9: =C9*D8 -> 232500
A10: 0.25 | B10: =A10*B8 -> 65000 | C10: 0.25 | D10: =C10*D8 -> 77500
A15: ASK | B15: Passive Involvement | C15: 3 | D15: Passive Involvement (none) | E15: 3
B16: Free up cash for other opportunities | C16: 2 | D16: Free up cash for other opportunities | E16: 2
B17: Defer Capital Gain | C17: 2 | D17: Defer Capital Gain | E17: 1
B18: Maintain Upside of Property | C18: 3 | D18: Maintain Upside of Property | E18: 1
B19: Benefit from Strong & Stabilized Yield | C19: 2 | D19: Benefit from Strong & Stabilized Yield | E19: 1
C20: =SUM(C15:C19) -> 12 | E20: =SUM(E15:E19) -> 8
